Body,Body Name,Date,TransNo,Amount � (Excl VAT),Supplier name,Description,Expense Area,Expense Type,Expense Code,
http://opendatacommunities.org/id/london-borough-council/sutton,London Borough of Sutton,14/02/2019,1269063,47.89 , AMZN MKTP UK MI16B28W4,TOYS/EQUIPMENT,Peoples Services Directorate,Education Equipment,F009,
http://opendatacommunities.org/id/london-borough-council/sutton,London Borough of Sutton,12/02/2019,1269063,72.00 , AMZN MKTP UK MI2HA2MO4,EQUIPMENT,Peoples Services Directorate,Education Equipment,F009,
http://opendatacommunities.org/id/london-borough-council/sutton,London Borough of Sutton,12/02/2019,1269063,166.65 , AMAZON.CO.UK MI44X8MB4,TOYS/EQUIPMENT,Peoples Services Directorate,Education Equipment,F009,
http://opendatacommunities.org/id/london-borough-council/sutton,London Borough of Sutton,05/02/2019,1269063,30.00 , TESCO STORES 3235,EQUIPMENT,Peoples Services Directorate,Education Equipment,F009,
http://opendatacommunities.org/id/london-borough-council/sutton,London Borough of Sutton,25/02/2019,1269063,116.40 , SAINSBURYS 2331,GROCERY SHOP,Peoples Services Directorate,Provisions - General,F150,
http://opendatacommunities.org/id/london-borough-council/sutton,London Borough of Sutton,25/02/2019,1269063,63.70 , SAINSBURYS 2331,GROCERY SHOP,Peoples Services Directorate,Provisions - General,F150,
http://opendatacommunities.org/id/london-borough-council/sutton,London Borough of Sutton,05/02/2019,1269063,46.25 , SAINSBURYS 2331,GROCERY ACCOUNT,Peoples Services Directorate,Provisions - General,F150,
http://opendatacommunities.org/id/london-borough-council/sutton,London Borough of Sutton,05/02/2019,1269063,(46.65), SAINSBURYS 2331,GROCERY REFUND,Peoples Services Directorate,Provisions - General,F150,
http://opendatacommunities.org/id/london-borough-council/sutton,London Borough of Sutton,04/02/2019,1269063,(138.35), SAINSBURYS,GROCERY REFUND,Peoples Services Directorate,Provisions - General,F150,
http://opendatacommunities.org/id/london-borough-council/sutton,London Borough of Sutton,18/02/2019,1269063,90.94 , SAINSBURYS 2331,GROCERY SHOP,Peoples Services Directorate,Refreshments,F155,
http://opendatacommunities.org/id/london-borough-council/sutton,London Borough of Sutton,05/02/2019,1269063,91.00 , SAINSBURYS 2331,GROCERY SHOP,Peoples Services Directorate,Refreshments,F155,
http://opendatacommunities.org/id/london-borough-council/sutton,London Borough of Sutton,05/02/2019,1269063,9.70 , SAINSBURYS 2331,GROCERY SHOP,Peoples Services Directorate,Refreshments,F155,
http://opendatacommunities.org/id/london-borough-council/sutton,London Borough of Sutton,05/02/2019,1269063,(92.10), SAINSBURYS 2331,GROCERY REFUND,Peoples Services Directorate,Refreshments,F155,
http://opendatacommunities.org/id/london-borough-council/sutton,London Borough of Sutton,03/02/2019,1269063,46.35 , SAINSBURYS 2331,GROCERY SHOP,Peoples Services Directorate,Refreshments,F155,
http://opendatacommunities.org/id/london-borough-council/sutton,London Borough of Sutton,03/02/2019,1269063,92.10 , SAINSBURYS 2331,GROCERY SHOP,Peoples Services Directorate,Refreshments,F155,
http://opendatacommunities.org/id/london-borough-council/sutton,London Borough of Sutton,13/02/2019,1269063,34.10 , AMAZON.CO.UK MI1TQ35A4,PRINTER INK,Peoples Services Directorate,General Office Expenses,F235,
http://opendatacommunities.org/id/london-borough-council/sutton,London Borough of Sutton,12/02/2019,1269063,43.00 , OUT OF SCHOOL ALLIANCE,JOINING FEE - OUT OF SCHOOL ALLIANCE,Peoples Services Directorate,Fees - Other,F299,
http://opendatacommunities.org/id/london-borough-council/sutton,London Borough of Sutton,14/02/2019,1269063,14.58 , OUT OF SCHOOL ALLIANCE,OUT OF SCHOOL ALLIANCE DOWNLOAD,Peoples Services Directorate,Arts Programme,F306,
http://opendatacommunities.org/id/london-borough-council/sutton,London Borough of Sutton,20/02/2019,1269063,150.00 , EMPIRE CINEMAS LIMITED,150.00 - F106 0044 9999 - EMPIRE CINEMAS.PNG,Peoples Services Directorate,Personal Requisites,F106,
http://opendatacommunities.org/id/london-borough-council/sutton,London Borough of Sutton,13/02/2019,1269063,150.00 , CAREFORFAMILY.ORG,TRAINING COURSE,Peoples Services Directorate,Miscellaneous Training Courses,F304,
http://opendatacommunities.org/id/london-borough-council/sutton,London Borough of Sutton,14/02/2019,1269063,150.00 , WWW.REED.CO.UK,TRAINING COURSE,Peoples Services Directorate,Training - Course Fees,A520,
http://opendatacommunities.org/id/london-borough-council/sutton,London Borough of Sutton,14/02/2019,1269063,20.00 , OYSTER AUTO-TOP UP,20.00 AUTO TOP UP - A530 0301 9999.PNG,Peoples Services Directorate,Travelling and Subsistence Allowances,A530,
http://opendatacommunities.org/id/london-borough-council/sutton,London Borough of Sutton,07/02/2019,1269063,39.80 , DECATHLON UK,YOGA MATS,Peoples Services Directorate,Personal Requisites,F106,
http://opendatacommunities.org/id/london-borough-council/sutton,London Borough of Sutton,20/02/2019,1269063,22.00 , LBSUTTON,22.00 - F106 0304 9999 - SUTTON REGISTER OFFICE BC.PNG,Peoples Services Directorate,Personal Requisites,F106,
http://opendatacommunities.org/id/london-borough-council/sutton,London Borough of Sutton,19/02/2019,1269063,15.00 , OYSTER ONLINE,15.00 - A530 0304 9999 - OYSTER PURCHASE.PNG,Peoples Services Directorate,Travelling and Subsistence Allowances,A530,
http://opendatacommunities.org/id/london-borough-council/sutton,London Borough of Sutton,24/02/2019,1269063,20.00 , OYSTER AUTO-TOP UP,20.00 - AUTO TOP UP - A530 0304 9999 - .PNG,Peoples Services Directorate,Travelling and Subsistence Allowances,A530,
http://opendatacommunities.org/id/london-borough-council/sutton,London Borough of Sutton,07/02/2019,1269063,20.00 , OYSTER AUTO-TOP UP,20.00 AUTO TOP UP - A530 0304 9999.PNG,Peoples Services Directorate,Travelling and Subsistence Allowances,A530,
http://opendatacommunities.org/id/london-borough-council/sutton,London Borough of Sutton,25/02/2019,1269063,3.87 , MCDONALDS,JC ACTIVITY,Peoples Services Directorate,Personal Requisites,F106,
http://opendatacommunities.org/id/london-borough-council/sutton,London Borough of Sutton,22/02/2019,1269063,28.00 , B & Q 1191,ALLOTMENT PROJECT QUAD,Peoples Services Directorate,Personal Requisites,F106,
http://opendatacommunities.org/id/london-borough-council/sutton,London Borough of Sutton,21/02/2019,1269063,10.95 , THE POST OFFICE,KB POST CLOTHES 210219,Peoples Services Directorate,Personal Requisites,F106,
http://opendatacommunities.org/id/london-borough-council/sutton,London Borough of Sutton,21/02/2019,1269063,5.00 , COSTA COFFEE 43036750,FCF ACTIVITY,Peoples Services Directorate,Personal Requisites,F106,
http://opendatacommunities.org/id/london-borough-council/sutton,London Borough of Sutton,21/02/2019,1269063,5.00 , POUNDLAND LTD,ALLOTMENT PROJECT,Peoples Services Directorate,Personal Requisites,F106,
http://opendatacommunities.org/id/london-borough-council/sutton,London Borough of Sutton,21/02/2019,1269063,19.75 , WILKO RETAIL LIMIT,ALLOTMENT PROJECT,Peoples Services Directorate,Personal Requisites,F106,
http://opendatacommunities.org/id/london-borough-council/sutton,London Borough of Sutton,19/02/2019,1269063,67.50 , PRIMARK,KB PRISON CLOTHES,Peoples Services Directorate,Personal Requisites,F106,
http://opendatacommunities.org/id/london-borough-council/sutton,London Borough of Sutton,19/02/2019,1269063,10.95 , POST OFFICE COUNTER,KB POST CLOTHES,Peoples Services Directorate,Personal Requisites,F106,
http://opendatacommunities.org/id/london-borough-council/sutton,London Borough of Sutton,15/02/2019,1269063,10.00 , LBSUTTON,MA BIRTH CERTIFICATE,Peoples Services Directorate,Personal Requisites,F106,
http://opendatacommunities.org/id/london-borough-council/sutton,London Borough of Sutton,14/02/2019,1269063,50.00 , PRIMARK,KB PRISON CLOTHES,Peoples Services Directorate,Personal Requisites,F106,
http://opendatacommunities.org/id/london-borough-council/sutton,London Borough of Sutton,12/02/2019,1269063,11.40 , M&S SIMPLY FOOD,RA ACTIVITY,Peoples Services Directorate,Personal Requisites,F106,
http://opendatacommunities.org/id/london-borough-council/sutton,London Borough of Sutton,20/02/2019,1269063,150.50 , TVLICENSING.CO.UK,150.50 - F106 0304 9999 - NEW TV LICENCE.PNG,Peoples Services Directorate,Personal Requisites,F106,
http://opendatacommunities.org/id/london-borough-council/sutton,London Borough of Sutton,19/02/2019,1269063,22.00 , LBSUTTON,22.00 - F106 0304 9999 - SUTTON REGISTER OFFICE BC.PNG,Peoples Services Directorate,Personal Requisites,F106,
http://opendatacommunities.org/id/london-borough-council/sutton,London Borough of Sutton,19/02/2019,1269063,22.00 , LBSUTTON,22.00 - F106 0304 9999 - SUTTON REGISTER OFFICE BC.PNG,Peoples Services Directorate,Personal Requisites,F106,
http://opendatacommunities.org/id/london-borough-council/sutton,London Borough of Sutton,20/02/2019,1269063,22.00 , LBSUTTON,22.00 - F106 0304 9999 - SUTTON REGISTER OFFICE BC.PNG,Peoples Services Directorate,Personal Requisites,F106,
http://opendatacommunities.org/id/london-borough-council/sutton,London Borough of Sutton,12/02/2019,1269063,18.50 , GEN REGISTER OFFICE,18.50 - F106 0304 9999 - GRO BIRTH CERT.PNG,Peoples Services Directorate,Personal Requisites,F106,
http://opendatacommunities.org/id/london-borough-council/sutton,London Borough of Sutton,04/02/2019,1269063,94.75 , POST OFFICE COUNTER,AWAITING RECEIPT,Peoples Services Directorate,Personal Requisites,F106,
http://opendatacommunities.org/id/london-borough-council/sutton,London Borough of Sutton,28/01/2019,1269063,81.50 , PREMIER INN,ACCOMMODATION,Peoples Services Directorate,Accommodation - Bed and Breakfast,H202,
http://opendatacommunities.org/id/london-borough-council/sutton,London Borough of Sutton,13/02/2019,1269063,11.60 , NEW SOUTHERN RAILW,KB TRAVEL TO PRISON,Peoples Services Directorate,C.C.A Travel & Subsistance,H212,
http://opendatacommunities.org/id/london-borough-council/sutton,London Borough of Sutton,12/02/2019,1269063,18.60 , NEW SOUTHERN RAILW,RA TRAVEL TO LONDON,Peoples Services Directorate,C.C.A Travel & Subsistance,H212,
http://opendatacommunities.org/id/london-borough-council/sutton,London Borough of Sutton,25/02/2019,1269063,86.95 , HOME STORE,JC SETTING UP,Peoples Services Directorate,Set Up Costs - Children Leaving Care,H336,
http://opendatacommunities.org/id/london-borough-council/sutton,London Borough of Sutton,25/02/2019,1269063,79.97 , ARGOS LTD,JC SETTING UP,Peoples Services Directorate,Set Up Costs - Children Leaving Care,H336,
http://opendatacommunities.org/id/london-borough-council/sutton,London Borough of Sutton,12/02/2019,1269063,95.96 , B & Q 1191,JC SETTING UP,Peoples Services Directorate,Set Up Costs - Children Leaving Care,H336,
http://opendatacommunities.org/id/london-borough-council/sutton,London Borough of Sutton,11/02/2019,1269063,135.00 , BRITISH HEART FOUNDATI,JC SETTING UP,Peoples Services Directorate,Set Up Costs - Children Leaving Care,H336,
http://opendatacommunities.org/id/london-borough-council/sutton,London Borough of Sutton,11/02/2019,1269063,160.42 , IKEA LIMITED,JC SETTING UP,Peoples Services Directorate,Set Up Costs - Children Leaving Care,H336,
http://opendatacommunities.org/id/london-borough-council/sutton,London Borough of Sutton,29/01/2019,1269063,212.50 , BRITISH HEART FOUNDATI,JA SETTING UP,Peoples Services Directorate,Set Up Costs - Children Leaving Care,H336,
http://opendatacommunities.org/id/london-borough-council/sutton,London Borough of Sutton,20/02/2019,1269063,22.00 , LBSUTTON,22.00 - F106 0305 9999 - BIRTH CERT SUTTONX2.PNG,Peoples Services Directorate,Personal Requisites,F106,
http://opendatacommunities.org/id/london-borough-council/sutton,London Borough of Sutton,20/02/2019,1269063,20.00 , OYSTER AUTO-TOP UP,20.00 AUTO TOP UP - A530 0310 9999.PNG,Peoples Services Directorate,Travelling and Subsistence Allowances,A530,
http://opendatacommunities.org/id/london-borough-council/sutton,London Borough of Sutton,06/02/2019,1269063,20.00 , OYSTER AUTO-TOP UP,20.00 AUTO TOP UP - A530 0310 9999 - .PNG,Peoples Services Directorate,Travelling and Subsistence Allowances,A530,
http://opendatacommunities.org/id/london-borough-council/sutton,London Borough of Sutton,31/01/2019,1269063,20.00 , OYSTER AUTO-TOP UP,20.00 AUTO TOP UP - A530 0310 9999 - .PNG,Peoples Services Directorate,Travelling and Subsistence Allowances,A530,
http://opendatacommunities.org/id/london-borough-council/sutton,London Borough of Sutton,31/01/2019,1269063,20.00 , OYSTER AUTO-TOP UP,20.00 AUTO TOP UP - A530 0310 9999 - .PNG,Peoples Services Directorate,Travelling and Subsistence Allowances,A530,
http://opendatacommunities.org/id/london-borough-council/sutton,London Borough of Sutton,31/01/2019,1269063,20.00 , OYSTER AUTO-TOP UP,20.00 AUTO TOP UP - A530 0310 9999 - .PNG,Peoples Services Directorate,Travelling and Subsistence Allowances,A530,
http://opendatacommunities.org/id/london-borough-council/sutton,London Borough of Sutton,04/02/2019,1269063,10.00 , TFL OYST PHOTOCARD,OYSTER CARD RENEWAL,Peoples Services Directorate,Travelling and Subsistence Allowances,A530,
http://opendatacommunities.org/id/london-borough-council/sutton,London Borough of Sutton,14/02/2019,1269063,20.00 , OYSTER AUTO-TOP UP,20.00 AUTO TOP UP - A530 0311 9999 - .PNG,Peoples Services Directorate,Travelling and Subsistence Allowances,A530,
http://opendatacommunities.org/id/london-borough-council/sutton,London Borough of Sutton,14/02/2019,1269063,20.00 , OYSTER AUTO-TOP UP,20.00 AUTO TOP UP - A530 0311 9999 - .PNG,Peoples Services Directorate,Travelling and Subsistence Allowances,A530,
http://opendatacommunities.org/id/london-borough-council/sutton,London Borough of Sutton,09/02/2019,1269063,20.00 , OYSTER AUTO-TOP UP,20.00 AUTO TOP UP - A530 0311 9999.PNG,Peoples Services Directorate,Travelling and Subsistence Allowances,A530,
http://opendatacommunities.org/id/london-borough-council/sutton,London Borough of Sutton,01/02/2019,1269063,20.00 , WWW.WIGHTLINK.CO.UK,20.00 - A530 0311 9999 - WIGTLINK.PNG,Peoples Services Directorate,Travelling and Subsistence Allowances,A530,
http://opendatacommunities.org/id/london-borough-council/sutton,London Borough of Sutton,30/01/2019,1269063,20.00 , WWW.WIGHTLINK.CO.UK,20.00 - A530 0311 9999 - WIGTLINK.PNG,Peoples Services Directorate,Travelling and Subsistence Allowances,A530,
http://opendatacommunities.org/id/london-borough-council/sutton,London Borough of Sutton,14/02/2019,1269063,20.00 , OYSTER AUTO-TOP UP,20.00 AUTO TOP UP - A530 0311 9999 - .PNG,Peoples Services Directorate,Recruitment Expenses,A531,
http://opendatacommunities.org/id/london-borough-council/sutton,London Borough of Sutton,07/02/2019,1269063,21.50 , L B SOUTHWARK - INT,BIRTH CERTIFICATE,Peoples Services Directorate,Personal Requisites,F106,
http://opendatacommunities.org/id/london-borough-council/sutton,London Borough of Sutton,22/02/2019,1269063,22.00 , LBSUTTON,22.00 - F106 0311 9999 - SUTTON REGISTER OFFICE.PNG,Peoples Services Directorate,Personal Requisites,F106,
http://opendatacommunities.org/id/london-borough-council/sutton,London Borough of Sutton,19/02/2019,1269063,127.00 , HM PASSPORT,127.00 - F106 0311 9999 - HMPO.PNG,Peoples Services Directorate,Personal Requisites,F106,
http://opendatacommunities.org/id/london-borough-council/sutton,London Borough of Sutton,19/02/2019,1269063,20.00 , NCS TRUST,20.00 - F106 0311 9999 - NCS .PNG,Peoples Services Directorate,Personal Requisites,F106,
http://opendatacommunities.org/id/london-borough-council/sutton,London Borough of Sutton,12/02/2019,1269063,33.25 , AMFBOWLING.CO.UK,33.25 - F106 0311 9999 - HOLLYWOOD BOWL.PNG,Peoples Services Directorate,Personal Requisites,F106,
http://opendatacommunities.org/id/london-borough-council/sutton,London Borough of Sutton,12/02/2019,1269063,59.96 , WWW.BOOK.SNOZONEUK,59.96 - F106 0311 9999 - SNOZONE MILTON KEYNES.PNG,Peoples Services Directorate,Personal Requisites,F106,
http://opendatacommunities.org/id/london-borough-council/sutton,London Borough of Sutton,11/02/2019,1269063,18.50 , GEN REGISTER OFFICE,18.50 - F106 0311 9999 - BIRTH CERTIFICATE.PNG,Peoples Services Directorate,Personal Requisites,F106,
http://opendatacommunities.org/id/london-borough-council/sutton,London Borough of Sutton,05/02/2019,1269063,54.00 , HM PASSPORT OFFICE,AWAITING RECEIPT,Peoples Services Directorate,Personal Requisites,F106,
http://opendatacommunities.org/id/london-borough-council/sutton,London Borough of Sutton,04/02/2019,1269063,68.25 , POST OFFICE COUNTER,AWAITING RECEIPT,Peoples Services Directorate,Personal Requisites,F106,
http://opendatacommunities.org/id/london-borough-council/sutton,London Borough of Sutton,14/02/2019,1269063,49.00 , HM PASSPORT OFFICE,PASSPORT APPLICATION,Peoples Services Directorate,Personal Requisites,F106,
http://opendatacommunities.org/id/london-borough-council/sutton,London Borough of Sutton,14/02/2019,1269063,54.00 , HM PASSPORT OFFICE,PASSPORT APPLICATION,Peoples Services Directorate,Personal Requisites,F106,
http://opendatacommunities.org/id/london-borough-council/sutton,London Borough of Sutton,19/02/2019,1269063,162.20 , CLOCK TOWER CARS,160.20 - H212 0311 9999 - CLOCKTOWER CARS.PNG,Peoples Services Directorate,C.C.A Travel & Subsistance,H212,
http://opendatacommunities.org/id/london-borough-council/sutton,London Borough of Sutton,06/02/2019,1269063,110.40 , TRAVELODGE,110.40 - H301 0311 9999 - TRAVELODGE - HOTEL BOOKING FOR HUNTINGFORD.PNG,Peoples Services Directorate,Client Care/Assistance,H301,
http://opendatacommunities.org/id/london-borough-council/sutton,London Borough of Sutton,10/02/2019,1269063,20.00 , OYSTER AUTO-TOP UP,20.00 AUTO TOP UP - A530 0312 9999 -.PNG,Peoples Services Directorate,Travelling and Subsistence Allowances,A530,
http://opendatacommunities.org/id/london-borough-council/sutton,London Borough of Sutton,02/02/2019,1269063,20.00 , OYSTER AUTO-TOP UP,20.00 - A530 0312 9999 - OYSTER CARD.PNG,Peoples Services Directorate,Travelling and Subsistence Allowances,A530,
http://opendatacommunities.org/id/london-borough-council/sutton,London Borough of Sutton,01/02/2019,1269063,20.00 , OYSTER AUTO-TOP UP,20.00 - A530 0312 9999 - OYSTER CARD.PNG,Peoples Services Directorate,Travelling and Subsistence Allowances,A530,
http://opendatacommunities.org/id/london-borough-council/sutton,London Borough of Sutton,22/02/2019,1269063,33.00 , LBSUTTON,33.00 - F106 0312 9999 - SUTTON REGISTER 1.PNG,Peoples Services Directorate,First Aid and Medical Requisites,F105,
http://opendatacommunities.org/id/london-borough-council/sutton,London Borough of Sutton,20/02/2019,1269063,143.00 , GEN REGISTER OFFICE,143.00 - F106 0312 9999 - GENEREAL REGISTER OFFICE.PNG,Peoples Services Directorate,Personal Requisites,F106,
http://opendatacommunities.org/id/london-borough-council/sutton,London Borough of Sutton,13/02/2019,1269063,(42.00), WANDSWORTH COUNCIL,42.00 - F106 0312 9999 - BIRTH CERT WANDSWORTH.PNG,Peoples Services Directorate,Personal Requisites,F106,
http://opendatacommunities.org/id/london-borough-council/sutton,London Borough of Sutton,12/02/2019,1269063,42.00 , WANDSWORTH COUNCIL,42.00 - F106 0312 9999 - BIRTH CERT WANDSWORTH.PNG,Peoples Services Directorate,Personal Requisites,F106,
http://opendatacommunities.org/id/london-borough-council/sutton,London Borough of Sutton,23/02/2019,1269063,20.00 , OYSTER AUTO-TOP UP,20.00 - AUTO TOP UP - A530 0318 9999.PNG,Peoples Services Directorate,Travelling and Subsistence Allowances,A530,
http://opendatacommunities.org/id/london-borough-council/sutton,London Borough of Sutton,04/02/2019,1269063,292.99 , DUNELM ONLINE ORDER,292.99 - F080 0318 999 - DUNELM ORDER.PNG,Peoples Services Directorate,Furniture - Purchase,F080,
http://opendatacommunities.org/id/london-borough-council/sutton,London Borough of Sutton,04/02/2019,1269063,137.00 , DUNELM ONLINE ORDER,DUNE-ELM - ORDER FOR REL CLIENT,Peoples Services Directorate,Client Care/Assistance,H301,
http://opendatacommunities.org/id/london-borough-council/sutton,London Borough of Sutton,04/02/2019,1269063,34.50 , WWW.JOHNLEWIS.COM,JOHN LEWIS,Peoples Services Directorate,Client Care/Assistance,H301,
http://opendatacommunities.org/id/london-borough-council/sutton,London Borough of Sutton,04/02/2019,1269063,43.95 , WWW.ARGOS.CO.UK,ARGOS - ITEMS FOR REL CLIENT,Peoples Services Directorate,Client Care/Assistance,H301,
http://opendatacommunities.org/id/london-borough-council/sutton,London Borough of Sutton,04/02/2019,1269063,132.50 , WWW.IKEA.COM,IKEA - ITEMS FOR REL CLIENT,Peoples Services Directorate,Client Care/Assistance,H301,
http://opendatacommunities.org/id/london-borough-council/sutton,London Borough of Sutton,31/01/2019,1269063,238.94 , WWW.ARGOS.CO.UK,FRIDGE FOR REL CLIENT,Peoples Services Directorate,Client Care/Assistance,H301,
http://opendatacommunities.org/id/london-borough-council/sutton,London Borough of Sutton,04/02/2019,1269063,399.99 , ARGOS LTD,399.99 - F002 0320 9999 - ARGOS LAPTOP.PDF,Peoples Services Directorate,Administrative Equipment,F001,
http://opendatacommunities.org/id/london-borough-council/sutton,London Borough of Sutton,04/02/2019,1269063,356.93 , WWW.ARGOS.CO.UK,356.93 - F002 0320 9999 - ARGOS ORDER.PNG,Peoples Services Directorate,Administrative Equipment,F001,
http://opendatacommunities.org/id/london-borough-council/sutton,London Borough of Sutton,12/02/2019,1269063,30.95 , WWW.CORAM.ORG.UK,EDUCATIONAL BOOKS,Peoples Services Directorate,Personal Requisites,F106,
http://opendatacommunities.org/id/london-borough-council/sutton,London Borough of Sutton,25/02/2019,1269063,323.93 , WWW.ARGOS.CO.UK,ADOPTION ITEMS,Peoples Services Directorate,Personal Requisites,F106,
http://opendatacommunities.org/id/london-borough-council/sutton,London Borough of Sutton,25/02/2019,1269063,209.99 , WWW.ARGOS.CO.UK,ADOPTION ITEMS,Peoples Services Directorate,Personal Requisites,F106,
http://opendatacommunities.org/id/london-borough-council/sutton,London Borough of Sutton,25/02/2019,1269063,20.48 , AMZN MKTP UK MI9Q29YR4,24.57 - F106 0340 9999 - AMAZON.PNG,Peoples Services Directorate,Personal Requisites,F106,
http://opendatacommunities.org/id/london-borough-council/sutton,London Borough of Sutton,22/02/2019,1269063,14.98 , AMZN MKTP UK MI0CF8I74,14.98 - F106 0340 9999 - AMAZON ORDER.PNG,Peoples Services Directorate,Personal Requisites,F106,
http://opendatacommunities.org/id/london-borough-council/sutton,London Borough of Sutton,24/02/2019,1269063,16.28 , AMAZON.CO.UK MI3F60RF4,16.28 - F106 0340 9999 - AMAZON ORDER 1.PNG,Peoples Services Directorate,Personal Requisites,F106,
http://opendatacommunities.org/id/london-borough-council/sutton,London Borough of Sutton,25/02/2019,1269063,79.84 , AMZN MKTP UK MI5QH3W24,79.84 - F106 0340 9999 - AMAZON ORDER.PN,Peoples Services Directorate,Personal Requisites,F106,
http://opendatacommunities.org/id/london-borough-council/sutton,London Borough of Sutton,05/02/2019,1269063,23.70 , AMZN MKTP UK MI5AI0TT4,23.70 - F106 0340 9999 - CLOCK FOR SFC.PNG,Peoples Services Directorate,Personal Requisites,F106,
http://opendatacommunities.org/id/london-borough-council/sutton,London Borough of Sutton,24/02/2019,1269063,19.93 , AMAZON.CO.UK MI8W69RK4,"23.92, 24.57 - F150 0340 9999 - AMAZON.PNG",Peoples Services Directorate,Provisions - General,F150,
http://opendatacommunities.org/id/london-borough-council/sutton,London Borough of Sutton,07/02/2019,1269063,114.61 , TESCO STORES 5999,114.71 - F106 0340 9999 - TESCO..PNG,Peoples Services Directorate,Refreshments,F155,
http://opendatacommunities.org/id/london-borough-council/sutton,London Borough of Sutton,06/02/2019,1269063,20.00 , OYSTER AUTO-TOP UP,OYSTER TOP UP ON LINE,Peoples Services Directorate,Travelling and Subsistence Allowances,A530,
http://opendatacommunities.org/id/london-borough-council/sutton,London Borough of Sutton,05/02/2019,1269063,30.83 , WWW.DOMINOS.CO.UK,RESOURCES FOR BEHAVIOURAL INSIGHTS TRAINING TEAM PROJECT,Chief Executive's Directorate,LAC - Education,F269,
http://opendatacommunities.org/id/london-borough-council/sutton,London Borough of Sutton,31/01/2019,1269063,799.90 , LINKEDIN-446 8881803,LINKEDIN-446 8881803,Peoples Services Directorate,Subscriptions - General,F450,
http://opendatacommunities.org/id/london-borough-council/sutton,London Borough of Sutton,14/02/2019,1269063,702.00 , TRAVELODGE,EMERGENCY ACCOMMODATION,Peoples Services Directorate,C.C.A Rent & Utilities,H211,
http://opendatacommunities.org/id/london-borough-council/sutton,London Borough of Sutton,05/02/2019,1269063,150.00 , CAREFORFAMILY.ORG,150.00 - A520 0384 9999 - TRAINING COURSE.PNG,Peoples Services Directorate,Training - Course Fees,A520,
http://opendatacommunities.org/id/london-borough-council/sutton,London Borough of Sutton,22/02/2019,1269063,591.85 , TRAVELODGE,562.50 - H202 0384 9999 - TRAVELODGE MORDEN WIMBLEDON.PNG,Peoples Services Directorate,Accommodation - Bed and Breakfast,H202,
http://opendatacommunities.org/id/london-borough-council/sutton,London Borough of Sutton,07/02/2019,1269063,562.50 , TRAVELODGE,562.50 - H202 0384 9999 - TRAVELODGE MORDEN WIMBLEDON.PNG,Peoples Services Directorate,Accommodation - Bed and Breakfast,H202,
http://opendatacommunities.org/id/london-borough-council/sutton,London Borough of Sutton,31/01/2019,1269063,566.50 , TRAVELODGE,562.50 - H202 0384 9999 - TRAVELODGE MORDEN WIMBLEDON.PNG,Peoples Services Directorate,Accommodation - Bed and Breakfast,H202,
http://opendatacommunities.org/id/london-borough-council/sutton,London Borough of Sutton,20/02/2019,1269063,20.00 , OYSTER AUTO-TOP UP,OYSTERCARD TOP UP,"Environment, Housing & Regeneration Directorate",General Office Expenses,F235,
http://opendatacommunities.org/id/london-borough-council/sutton,London Borough of Sutton,31/01/2019,1269063,20.00 , OYSTER AUTO-TOP UP,OYSTERCARD TOP UP,"Environment, Housing & Regeneration Directorate",General Office Expenses,F235,
http://opendatacommunities.org/id/london-borough-council/sutton,London Borough of Sutton,23/02/2019,1269063,20.00 , OYSTER AUTO-TOP UP,OYSTERCARD TOP UP,"Environment, Housing & Regeneration Directorate",General Office Expenses,F235,
http://opendatacommunities.org/id/london-borough-council/sutton,London Borough of Sutton,20/02/2019,1269063,20.00 , OYSTER AUTO-TOP UP,OYSTERCARD TOP UP,"Environment, Housing & Regeneration Directorate",General Office Expenses,F235,
http://opendatacommunities.org/id/london-borough-council/sutton,London Borough of Sutton,08/02/2019,1269063,20.00 , OYSTER AUTO-TOP UP,OYSTERCARD TOP UP,"Environment, Housing & Regeneration Directorate",General Office Expenses,F235,
http://opendatacommunities.org/id/london-borough-council/sutton,London Borough of Sutton,09/02/2019,1269063,20.00 , OYSTER AUTO-TOP UP,OYSTERCARD TOP UP,"Environment, Housing & Regeneration Directorate",General Office Expenses,F235,
http://opendatacommunities.org/id/london-borough-council/sutton,London Borough of Sutton,31/01/2019,1269063,20.00 , OYSTER AUTO-TOP UP,OYSTERCARD TOP UP,"Environment, Housing & Regeneration Directorate",General Office Expenses,F235,
http://opendatacommunities.org/id/london-borough-council/sutton,London Borough of Sutton,03/02/2019,1269063,37.07 , AMZN MKTP UK MI2LU8354,WALL MOUNT - CCTV VIEWING SCREEN,"Environment, Housing & Regeneration Directorate",Other Equipment - Purchase,F015,
http://opendatacommunities.org/id/london-borough-council/sutton,London Borough of Sutton,31/01/2019,1269063,93.00 , IZ  CAKE MY DAY,WHITEHALL TEA ROOM SUPPLIES,Chief Executive's Directorate,Provisions - General,F150,
http://opendatacommunities.org/id/london-borough-council/sutton,London Borough of Sutton,31/01/2019,1269063,33.85 , SAINSBURYS 2331,LITTLE HOLLAND HOUSE EVENT,Chief Executive's Directorate,Provisions - General,F150,
http://opendatacommunities.org/id/london-borough-council/sutton,London Borough of Sutton,31/01/2019,1269063,(1.15), SAINSBURYS 2331,SAINSBURY'S REFUND,Chief Executive's Directorate,Provisions - General,F150,
http://opendatacommunities.org/id/london-borough-council/sutton,London Borough of Sutton,12/02/2019,1269063,83.33 , M AND H MEDIA LTD,ENTRY TO THE MUSEUMS AND HERITAGEAWARDS 2019 - ID 69,Chief Executive's Directorate,Subscriptions - General,F450,
http://opendatacommunities.org/id/london-borough-council/sutton,London Borough of Sutton,15/02/2019,1269063,20.00 , J LEON & CO,TOPUP OYSTER CARDS,Resources Directorate,Travelling and Subsistence Allowances,A530,
http://opendatacommunities.org/id/london-borough-council/sutton,London Borough of Sutton,01/02/2019,1269063,25.00 , J LEON & CO,TOPUP OYSTER CARD STAFF TRAVEL,Resources Directorate,Travelling and Subsistence Allowances,A530,
http://opendatacommunities.org/id/london-borough-council/sutton,London Borough of Sutton,25/02/2019,1269063,23.45 , TESCO STORE 3235,SUPPLIES,Resources Directorate,General Office Expenses,F235,
http://opendatacommunities.org/id/london-borough-council/sutton,London Borough of Sutton,01/02/2019,1269063,69.23 , FLORAL IMAGE SUSSEX,CORPORATE FLOWER ARRANGEMENTS,Resources Directorate,General Office Expenses,F235,
http://opendatacommunities.org/id/london-borough-council/sutton,London Borough of Sutton,30/01/2019,1269063,10.00 , ASDA STORES,TISSUES AIR FRESHENER,Resources Directorate,General Office Expenses,F235,
http://opendatacommunities.org/id/london-borough-council/sutton,London Borough of Sutton,03/02/2019,1269063,8.32 , SPOTIFY UK,MUSIC SUBSCRIPTION FOR WEDDINGS,Resources Directorate,Subscriptions - General,F450,
http://opendatacommunities.org/id/london-borough-council/sutton,London Borough of Sutton,30/01/2019,1269063,16.67 , HALFORDS 0740,SNOW SHOVEL AND BATTERIES,Resources Directorate,Miscellaneous Expenses,F620,
http://opendatacommunities.org/id/london-borough-council/sutton,London Borough of Sutton,29/01/2019,1269063,167.76 , WWW.ELEGANTEVENTESSENT,CHAIR COVERS FOR GARDEN ROOM,Resources Directorate,Miscellaneous Expenses,F620,
http://opendatacommunities.org/id/london-borough-council/sutton,London Borough of Sutton,21/02/2019,1269063,20.00 , OYSTER AUTO-TOP UP,OYSTERCARD TOP UP,HRA,General Office Expenses,F235,
http://opendatacommunities.org/id/london-borough-council/sutton,London Borough of Sutton,06/02/2019,1269063,20.00 , OYSTER AUTO-TOP UP,OYSTERCARD TOP UP,HRA,General Office Expenses,F235,
http://opendatacommunities.org/id/london-borough-council/sutton,London Borough of Sutton,20/02/2019,1269063,20.00 , OYSTER AUTO-TOP UP,OYSTERCARD TOP UP,"Environment, Housing & Regeneration Directorate",General Office Expenses,F235,
http://opendatacommunities.org/id/london-borough-council/sutton,London Borough of Sutton,08/02/2019,1269063,20.00 , OYSTER AUTO-TOP UP,OYSTERCARD TOP UP,"Environment, Housing & Regeneration Directorate",General Office Expenses,F235,
http://opendatacommunities.org/id/london-borough-council/sutton,London Borough of Sutton,30/01/2019,1269063,20.00 , OYSTER AUTO-TOP UP,OYSTERCARD TOP UP,"Environment, Housing & Regeneration Directorate",General Office Expenses,F235,
http://opendatacommunities.org/id/london-borough-council/sutton,London Borough of Sutton,15/02/2019,1269063,20.00 , OYSTER AUTO-TOP UP,TEAM OYSTER,Chief Executive's Directorate,Travelling and Subsistence Allowances,A530,
http://opendatacommunities.org/id/london-borough-council/sutton,London Borough of Sutton,17/02/2019,1269063,20.00 , OYSTER AUTO-TOP UP,TEAM OYSTER,Chief Executive's Directorate,Travelling and Subsistence Allowances,A530,
http://opendatacommunities.org/id/london-borough-council/sutton,London Borough of Sutton,17/02/2019,1269063,20.00 , OYSTER AUTO-TOP UP,TEAM OYSTER,Chief Executive's Directorate,Travelling and Subsistence Allowances,A530,
http://opendatacommunities.org/id/london-borough-council/sutton,London Borough of Sutton,14/02/2019,1269063,20.00 , OYSTER AUTO-TOP UP,TEAM OYSTER,Chief Executive's Directorate,Travelling and Subsistence Allowances,A530,
http://opendatacommunities.org/id/london-borough-council/sutton,London Borough of Sutton,14/02/2019,1269063,20.00 , OYSTER AUTO-TOP UP,TEAM OYSTER,Chief Executive's Directorate,Travelling and Subsistence Allowances,A530,
http://opendatacommunities.org/id/london-borough-council/sutton,London Borough of Sutton,13/02/2019,1269063,20.00 , OYSTER AUTO-TOP UP,TEAM OYSTER,Chief Executive's Directorate,Travelling and Subsistence Allowances,A530,
http://opendatacommunities.org/id/london-borough-council/sutton,London Borough of Sutton,09/02/2019,1269063,15.10 , WILKO RETAIL LIMIT,RESOURCES FOR BEHAVIOURAL INSIGHTS TRAINING TEAM PROJECT,Chief Executive's Directorate,General Office Expenses,F235,
http://opendatacommunities.org/id/london-borough-council/sutton,London Borough of Sutton,07/02/2019,1269063,8.97 , HOUSE MART,RESOURCES FOR BEHAVIOURAL INSIGHTS TRAINING TEAM PROJECT,Chief Executive's Directorate,General Office Expenses,F235,
http://opendatacommunities.org/id/london-borough-council/sutton,London Borough of Sutton,14/02/2019,1269063,129.15 , MAILCHIMP    MONTHLY,WEB HOSTING,Chief Executive's Directorate,Fees - Computer Software,F384,
http://opendatacommunities.org/id/london-borough-council/sutton,London Borough of Sutton,15/02/2019,1269063,20.00 , OYSTER AUTO-TOP UP,20.00 AUTO TOP UP - A530 4114 9999 .PNG,Resources Directorate,Travelling and Subsistence Allowances,A530,
http://opendatacommunities.org/id/london-borough-council/sutton,London Borough of Sutton,15/02/2019,1269063,20.00 , OYSTER AUTO-TOP UP,20.00 AUTO TOP UP - A530 4114 9999 .PNG,Resources Directorate,Travelling and Subsistence Allowances,A530,
http://opendatacommunities.org/id/london-borough-council/sutton,London Borough of Sutton,16/02/2019,1269063,20.00 , OYSTER AUTO-TOP UP,20.00 AUTO TOP UP - A530 4114 9999 .PNG,Resources Directorate,Travelling and Subsistence Allowances,A530,
http://opendatacommunities.org/id/london-borough-council/sutton,London Borough of Sutton,16/02/2019,1269063,20.00 , OYSTER AUTO-TOP UP,20.00 AUTO TOP UP - A530 4114 9999 .PNG,Resources Directorate,Travelling and Subsistence Allowances,A530,
http://opendatacommunities.org/id/london-borough-council/sutton,London Borough of Sutton,16/02/2019,1269063,20.00 , OYSTER AUTO-TOP UP,20.00 AUTO TOP UP - A530 4114 9999 .PNG,Resources Directorate,Travelling and Subsistence Allowances,A530,
http://opendatacommunities.org/id/london-borough-council/sutton,London Borough of Sutton,17/02/2019,1269063,20.00 , OYSTER AUTO-TOP UP,20.00 AUTO TOP UP - A530 4114 9999 .PNG,Resources Directorate,Travelling and Subsistence Allowances,A530,
http://opendatacommunities.org/id/london-borough-council/sutton,London Borough of Sutton,17/02/2019,1269063,20.00 , OYSTER AUTO-TOP UP,20.00 AUTO TOP UP - A530 4114 9999 .PNG,Resources Directorate,Travelling and Subsistence Allowances,A530,
http://opendatacommunities.org/id/london-borough-council/sutton,London Borough of Sutton,17/02/2019,1269063,20.00 , OYSTER AUTO-TOP UP,20.00 AUTO TOP UP - A530 4114 9999 .PNG,Resources Directorate,Travelling and Subsistence Allowances,A530,
http://opendatacommunities.org/id/london-borough-council/sutton,London Borough of Sutton,08/02/2019,1269063,20.00 , OYSTER AUTO-TOP UP,STAFF TRAVEL,Resources Directorate,Recruitment Expenses,A531,
http://opendatacommunities.org/id/london-borough-council/sutton,London Borough of Sutton,19/02/2019,1269063,23.31 , PAYPAL  GOOGLEADDON,DOCUMENT STUDIO - MACE,Resources Directorate,IT Licences,F385,
http://opendatacommunities.org/id/london-borough-council/sutton,London Borough of Sutton,04/02/2019,1269063,575.00 , WM MORRISONS STORE,AWAITING RECEIPT,Resources Directorate,C.C.A Food & Clothing,H213,
http://opendatacommunities.org/id/london-borough-council/sutton,London Borough of Sutton,19/02/2019,1269063,291.00 , sm1 print studio,recruitment banner,Resources Directorate,Training - Course Fees,A520,
http://opendatacommunities.org/id/london-borough-council/sutton,London Borough of Sutton,14/02/2019,1269063,961.00 , WWW.CII.CO.UK,ENROLMENT FEES,Resources Directorate,Training - Course Fees,A520,
http://opendatacommunities.org/id/london-borough-council/sutton,London Borough of Sutton,20/02/2019,1269063,40.47 , EB  LONDON WALKING AND,EB  LONDON WALKING AND,Resources Directorate,Members Expenses - Other,F402,
http://opendatacommunities.org/id/london-borough-council/sutton,London Borough of Sutton,28/01/2019,1269063,775.00 , WP-HANDS FREE COMP,WORKSTATION EQUIPMENT JW FOLLOWING ASSESSMENT,"Environment, Housing & Regeneration Directorate",Other Equipment - Purchase,F015,
http://opendatacommunities.org/id/london-borough-council/sutton,London Borough of Sutton,28/01/2019,1269063,175.00 , CHARTERED MANAGEME,CMI SUBSCRIPTION MD,"Environment, Housing & Regeneration Directorate",Subscriptions - General,F450,
http://opendatacommunities.org/id/london-borough-council/sutton,London Borough of Sutton,14/02/2019,1269063,82.00 , THE BCI FORUM R/T,AFFILIATE ANNUAL MEMBERSHIP SUBSCRIPTION - GP,"Environment, Housing & Regeneration Directorate",Subscriptions - General,F450,
http://opendatacommunities.org/id/london-borough-council/sutton,London Borough of Sutton,04/02/2019,1269063,206.00 , CHARTERED MNGMENT,CMI FELLOW MEMBERSHIP - WS,"Environment, Housing & Regeneration Directorate",Subscriptions - General,F450,
http://opendatacommunities.org/id/london-borough-council/sutton,London Borough of Sutton,02/02/2019,1269063,40.00 , OYSTER AUTO-TOP UP,OYSTER TOP UP CARD,Resources Directorate,Travelling and Subsistence Allowances,A530,
http://opendatacommunities.org/id/london-borough-council/sutton,London Borough of Sutton,15/02/2019,1269063,3.55 , MAILCHIMP    MONTHLY,WEB HOSTING,Resources Directorate,Fees - Computer Software,F384,
http://opendatacommunities.org/id/london-borough-council/sutton,London Borough of Sutton,04/02/2019,1269063,449.98 , WWW.ARGOS.CO.UK,PURCHASE OF WHITE GOODS FOR CRISIS LOAN AND GRANT SCHEME,Resources Directorate,Grants,F473,
http://opendatacommunities.org/id/london-borough-council/sutton,London Borough of Sutton,25/02/2019,1269063,202.95 , WWW.ARGOS.CO.UK,PURCHASE OF MATTRESS FOR CRISIS GRANT,Resources Directorate,Grants,F473,
http://opendatacommunities.org/id/london-borough-council/sutton,London Borough of Sutton,08/02/2019,1269063,155.95 , WWW.ARGOS.CO.UK,PURCHASE OF SINGLE DIVAN FOR CRISIS GRANT,Resources Directorate,Grants,F473,
http://opendatacommunities.org/id/london-borough-council/sutton,London Borough of Sutton,07/02/2019,1269063,40.00 , OYSTER AUTO-TOP UP,OYSTER TOP UP FOR REVENUES STAFF TRAVEL,Resources Directorate,Travelling and Subsistence Allowances,A530,
http://opendatacommunities.org/id/london-borough-council/sutton,London Borough of Sutton,04/02/2019,1269063,151.20 , NEWSQUEST MEDIA,PUBLICATION OF PUBLIC NOTICE REGARDING CHANGE IN COUNCIL TAX REGS,Resources Directorate,General Office Expenses,F235,
http://opendatacommunities.org/id/london-borough-council/sutton,London Borough of Sutton,07/02/2019,1269063,40.00 , OYSTER AUTO-TOP UP,OYSTER TOP UP FOR BENEFITS STAFF TRAVEL,Resources Directorate,Training - Travel and Subsistence,A521,
http://opendatacommunities.org/id/london-borough-council/sutton,London Borough of Sutton,05/02/2019,1269063,43.99 , RIBA SERVICES,BOOK ORDER FOR CAROLINE DULIGALL,Resources Directorate,Books of Reference/Statute,F222,
http://opendatacommunities.org/id/london-borough-council/sutton,London Borough of Sutton,14/02/2019,1269063,7.99 , AMAZON PRIME MI5MN4BZ4,7.99 - F009 6417 9999 - AMAZON - BOOK FOR EDUCATIONAL.PNG,Peoples Services Directorate,Education Equipment,F009,
http://opendatacommunities.org/id/london-borough-council/sutton,London Borough of Sutton,15/02/2019,1269063,27.50 , MARKS&SPENCER PLC,SANDWICHES FOR SSAB PEER REVIEW,Peoples Services Directorate,Refreshments,F155,
http://opendatacommunities.org/id/london-borough-council/sutton,London Borough of Sutton,15/02/2019,1269063,27.50 , MARKS&SPENCER PLC,SANDWICHES FOR SSAB PEER REVIEW,Peoples Services Directorate,Refreshments,F155,
http://opendatacommunities.org/id/london-borough-council/sutton,London Borough of Sutton,15/02/2019,1269063,27.50 , MARKS&SPENCER PLC,SANDWICHES FOR SSAB PEER REVIEW,Peoples Services Directorate,Refreshments,F155,
http://opendatacommunities.org/id/london-borough-council/sutton,London Borough of Sutton,12/02/2019,1269063,55.00 , OYSTER ONLINE,OYSTERCARD TOP UP,Peoples Services Directorate,Travelling and Subsistence Allowances,A530,
